bitfinex/quotes_ETHUSD_20250214
["timestamp","ask_amount","ask_price","bid_price","bid_amount"]
[1739545572906,0.7927,2722.3,2721.6,3.67428]
[1739545573050,0.03712621,2722.2,2721.8,3.67403]
[1739545573252,5.831,2722.4,2721.7,3.67405]
[1739545573619,9.50424,2722.4,2721.8,3.67393]
[1739545573952,9.50424,2722.4,2721.8,0.5575]
[1739545574500,9.50424,2722.4,2721.8,0.0075]
[1739545574652,3.67374,2722.1,2721.5,12.42444]
[1739545574852,3.67374,2722.1,2721.5,8.75]
[1739545575210,3.67374,2722.1,2721.5,12.42441]
[1739545575356,5.831,2722.4,2721.5,12.42441]
[1739545575357,5.831,2722.4,2721.7,0.0075]
[1739545575547,5.831,2722.4,2721.9,3.67387]
[1739545575749,5.831,2722.4,2721.9,3.67381]
[1739545575953,5.831,2722.4,2722.1,3.67357]
[1739545576203,5.831,2722.4,2722.1,0.7508]
[1739545576410,5.831,2722.4,2721.9,0.73555]
[1739545576553,7.34712,2722.2,2721.8,8.75]
[1739545576918,3.6735,2722.2,2721.6,4.22428]
[1739545577218,0.82019637,2722.3,2721.6,2.215614]
[1739545577422,4.46612,2722.3,2721.7,0.015]
[1739545577550,4.5005999,2722.3,2721.8,0.55]
[1739545578157,0.0344799,2722.3,2722.1,3.67359]
[1739545578345,0.0344799,2722.3,2722.0,0.55]
[1739545578499,0.0344799,2722.3,2721.9,0.7583]
[1739545578707,0.0344799,2722.3,2721.8,8.75]
[1739545578928,3.67363,2722.1,2721.8,8.75]
[1739545579090,7.3814299,2722.3,2721.8,8.75]
[1739545579286,3.7079399,2722.3,2721.8,9.9231414]
[1739545579644,3.67351,2722.2,2721.8,9.9231414]
[1739545580500,3.67363,2722.1,2721.8,9.9231414]
[1739545580811,3.67358,2722.2,2721.8,8.75]
[1739545581011,3.67336,2722.3,2721.8,8.75]
[1739545581586,7.34683,2722.3,2721.8,8.75]
[1739545581824,3.67336,2722.3,2721.8,8.75]
[1739545581987,6.0798,2722.4,2721.8,8.75]
[1739545582199,6.0798,2722.4,2721.6,1.3083]
[1739545582200,3.67413,2721.8,2721.3,3.67462]
[1739545582400,3.67413,2721.8,2721.2,13.22026]
[1739545582606,3.6743,2721.7,2721.3,0.5575]
[1739545582791,3.67416,2721.8,2721.3,0.5575]
[1739545583193,3.67413,2721.8,2721.3,0.0075]
[1739545583386,3.67413,2721.8,2721.3,1.12707744]
[1739545583585,3.67447,2721.5,2721.2,8.75]
[1739545584024,7.34873,2721.6,2721.2,8.75]
[1739545584202,3.67443,2721.6,2721.2,8.75]
[1739545584687,0.7888,2722.0,2720.9,9.5455]
[1739545584888,0.7888,2722.0,2720.6,0.297]
[1739545584889,0.2488,2722.4,2721.9,0.0075]
[1739545585153,0.2488,2722.4,2721.9,3.54389]
[1739545585322,0.2488,2722.4,2722.0,3.67375]
[1739545585648,3.92205,2722.4,2721.9,3.68883]
[1739545585849,0.2488,2722.4,2722.2,3.67339]
[1739545586049,0.2488,2722.4,2722.1,3.67361]
[1739545586396,0.2488,2722.4,2722.2,3.67349]
[1739545586732,0.2488,2722.4,2721.6,1.0925]
[1739545586930,0.2488,2722.4,2721.7,0.776689]
[1739545587170,0.2488,2722.4,2722.1,0.0075]
[1739545587386,0.2488,2722.4,2722.3,4.46886]
[1739545587587,0.2488,2722.4,2722.3,5.03386]
[1739545588174,7.01e-06,2722.4,2722.3,16.78386]
[1739545588485,7.01e-06,2722.4,2722.3,18.829595]
[1739545589037,7.01e-06,2722.4,2721.7,4.450759]
[1739545589038,7.01e-06,2722.4,2722.1,4.46902]
[1739545589337,7.01e-06,2722.4,2722.2,0.015]
[1739545589542,7.01e-06,2722.4,2722.2,3.68842]
[1739545589741,7.01e-06,2722.4,2722.3,3.68086]
[1739545590190,7.01e-06,2722.4,2722.3,3.68836]
[1739545590346,7.01e-06,2722.4,2722.3,8.929845]
[1739545590937,7.01e-06,2722.4,2722.3,1.706485]
[1739545591160,7.01e-06,2722.4,2722.3,0.0075]
[1739545592242,7.01e-06,2722.4,2722.1,9.5455]
[1739545592610,3.67326701,2722.4,2721.9,3.67387]
[1739545592936,7.01e-06,2722.4,2722.2,0.015]
[1739545593140,7.01e-06,2722.4,2722.2,3.68847]
[1739545593363,7.01e-06,2722.4,2722.3,0.376347]
[1739545594120,7.01e-06,2722.4,2722.3,0.0075]
[1739545595581,3.67337,2722.3,2721.9,8.75]
[1739545596386,7.01e-06,2722.4,2722.0,0.0075]
[1739545596613,7.01e-06,2722.4,2722.2,0.0075]
[1739545596925,7.01e-06,2722.4,2722.3,3.68086]
[1739545597136,7.01e-06,2722.4,2722.3,0.743684]
[1739545597424,7.01e-06,2722.4,2722.3,3.68086]
[1739545597631,7.01e-06,2722.4,2722.3,0.0075]
[1739545597836,7.01e-06,2722.4,2722.3,3.68086]
[1739545598321,7.01e-06,2722.4,2722.0,0.55]
[1739545598688,7.01e-06,2722.4,2722.1,0.015]
[1739545599505,7.01e-06,2722.4,2722.1,1.313865]
[1739545599831,0.7506,2722.0,2720.9,8.75]
[1739545599970,3.67465,2721.4,2720.8,3.67532]
[1739545600168,3.67465,2721.4,2720.8,12.4253]
[1739545600421,3.67465,2721.4,2720.9,0.0075]
[1739545600586,3.67465,2721.4,2720.9,1.25078]
[1739545600797,3.67473,2721.3,2720.9,1.25078]
[1739545601003,3.67492,2721.2,2720.8,8.75]
[1739545601198,3.6752,2721.0,2720.3,0.771]
[1739545601598,3.67533,2720.9,2720.4,0.0075]
[1739545601991,3.67546,2720.8,2720.4,0.0075]
[1739545602247,3.67574,2720.6,2720.3,8.75]
[1739545602545,3.67552,2720.7,2720.3,8.75]
[1739545603093,7.35114,2720.7,2720.3,8.75]
[1739545603442,7.35116,2720.7,2720.3,8.75]
[1739545603644,4.42636,2720.6,2720.1,0.0075]
[1739545603844,3.67589,2720.5,2720.1,1.327986]
[1739545604148,3.67593,2720.4,2720.1,1.327986]
[1739545604293,3.67589,2720.5,2720.1,0.0075]
[1739545605226,0.7506,2720.6,2720.1,0.0075]
[1739545605458,3.67539,2720.8,2720.1,3.67625]
[1739545605621,3.67552,2720.7,2720.2,0.368375]
[1739545605942,3.67552,2720.7,2720.3,0.0075]
[1739545606143,7.35113,2720.7,2720.3,0.0075]
[1739545606349,3.67569,2720.6,2720.3,0.0075]
[1739545606548,3.67594,2720.4,2719.9,8.75]
[1739545606761,3.67573,2720.6,2719.9,8.75]
[1739545606899,3.67582,2720.5,2720.0,0.875]
[1739545607496,3.67593,2720.4,2720.0,0.875]
[1739545607734,3.67608,2720.3,2720.0,0.0075]
[1739545607939,3.67684,2719.8,2719.6,0.0075]
[1739545608260,0.7506,2720.3,2719.2,8.75]
[1739545608261,3.67703,2719.6,2719.2,8.75]
[1739545608465,0.7506,2719.7,2719.2,8.75]
[1739545608667,3.67768,2719.1,2719.0,0.0777]
[1739545608797,3.67752,2719.3,2719.0,0.0777]
[1739545608992,0.7506,2719.7,2719.1,3.67759]
[1739545609249,0.7506,2719.7,2719.1,0.375529]
[1739545609456,3.67708,2719.6,2719.1,0.375529]
[1739545609798,0.7506,2719.7,2719.0,0.0777]
[1739545609998,3.67737,2719.4,2719.0,0.0777]
[1739545610194,7.35473,2719.4,2719.0,0.0777]
[1739545610398,3.67736,2719.4,2719.0,0.0777]
[1739545610872,4.42755,2719.7,2719.1,3.67758]
[1739545611155,0.7506,2719.7,2719.0,0.0777]
[1739545611450,3.67709,2719.6,2719.0,0.0777]
[1739545611854,3.67709,2719.6,2719.1,3.67764]
[1739545612262,0.7506,2719.7,2719.5,3.67714]
[1739545612398,3.67647,2720.0,2719.3,7.35464]
[1739545612598,0.7766,2720.1,2719.4,3.67716]
[1739545612599,7.453,2720.1,2719.4,3.67716]
[1739545612999,7.35331,2719.9,2719.4,3.67716]
[1739545613198,3.67662,2719.9,2719.2,3.67748]
[1739545613564,3.67689,2719.7,2719.2,3.68497]
[1739545613706,3.67666,2719.9,2719.3,3.67741]
[1739545614100,3.67666,2719.9,2719.3,3.67731]
[1739545614101,3.6767,2719.9,2719.3,3.67731]
[1739545614419,3.7766,2720.1,2719.3,3.67731]
[1739545614617,3.67647,2720.0,2719.3,3.67731]
[1739545615022,3.67688,2719.7,2719.2,3.68504]
[1739545615561,3.67665,2719.9,2719.2,3.68504]
[1739545615773,3.67665,2719.9,2719.4,3.67719]
[1739545615948,3.67654,2720.0,2719.4,3.67719]
[1739545616132,3.67654,2720.0,2719.5,3.67713]
[1739545616327,3.67654,2720.0,2719.4,3.67719]
[1739545616328,3.67669,2719.9,2719.2,3.68494]
[1739545616525,3.67687,2719.7,2719.2,3.68494]
[1739545617008,3.67687,2719.7,2719.2,7.36242]
[1739545617266,3.67687,2719.7,2719.2,3.68494]
[1739545617768,3.67708,2719.6,2719.1,3.6776]
[1739545617978,4.45383,2719.5,2719.0,0.0777]
[1739545618157,8.13107,2719.5,2719.0,3.75551]
[1739545618332,4.45383,2719.5,2719.1,3.67768]
[1739545618532,4.45383,2719.5,2719.0,3.75542]
[1739545618736,8.13108,2719.5,2719.0,0.0777]
[1739545618942,3.6773,2719.4,2719.0,0.0777]
[1739545619415,3.67728,2719.4,2719.0,0.0777]
[1739545619664,3.67747,2719.3,2719.0,0.0777]
[1739545619837,3.67742,2719.3,2719.0,0.0777]
[1739545620139,3.67762,2719.2,2719.0,0.0777]
[1739545620356,3.67768,2719.1,2719.0,0.0777]
[1739545620869,3.67756,2719.2,2719.0,0.0777]
[1739545621163,3.67768,2719.1,2719.0,0.0777]
[1739545621505,3.67753,2719.3,2719.0,0.0777]
[1739545621710,0.445377,2719.4,2719.0,0.0777]
[1739545621967,3.67768,2719.1,2719.0,0.0777]
[1739545622476,4.48177637,2719.1,2719.0,0.0777]
[1739545622629,4.45428,2719.1,2719.0,0.0777]
[1739545622833,0.7766,2719.1,2719.0,0.0777]
[1739545623078,4.45428,2719.1,2719.0,0.0777]
[1739545623234,5.267464,2719.1,2719.0,0.0777]
[1739545623813,0.7766,2719.1,2719.0,0.0777]
[1739545624581,3.67758,2719.2,2719.0,0.0777]
[1739545624893,0.7766,2719.4,2719.0,0.0777]
[1739545625029,4.45358,2719.7,2719.2,3.67751]
[1739545625427,3.6771,2719.6,2719.0,0.0777]
[1739545625766,3.6771,2719.6,2719.1,3.67767]
[1739545625971,3.67743,2719.3,2719.0,0.0777]
[1739545626273,3.67755,2719.2,2719.0,0.0777]
[1739545626771,3.67743,2719.3,2719.0,0.0777]
[1739545627076,3.6773,2719.4,2719.0,0.0777]
[1739545627361,3.67745,2719.3,2719.0,0.0777]
[1739545627562,3.67761,2719.2,2719.0,0.0777]
[1739545627709,4.47258,2719.1,2719.0,0.0777]
[1739545630827,0.7949,2719.1,2719.0,0.0777]
[1739545631062,4.47258,2719.1,2719.0,0.0777]
[1739545631833,4.50007637,2719.1,2719.0,0.0777]
[1739545632243,4.47258,2719.1,2719.0,0.0777]
[1739545633718,3.67768,2719.1,2719.0,0.0777]
[1739545633925,3.67762,2719.2,2719.0,0.0777]
[1739545634121,0.7949,2719.4,2719.0,0.0777]
[1739545634320,4.47156,2719.9,2719.3,3.67729]
[1739545634643,4.47156,2719.9,2719.4,3.6772]
[1739545634827,3.67674,2719.8,2719.2,8.15748]
[1739545635037,3.67674,2719.8,2719.2,5.303538]
[1739545635235,3.67687,2719.7,2719.2,5.303538]
[1739545635431,0.7949,2719.9,2719.3,0.0075]
[1739545635763,3.67646,2720.1,2719.3,0.04427308]
[1739545635960,0.7949,2720.4,2720.0,3.67643]
[1739545636167,0.7949,2720.4,2720.0,3.67639]
[1739545636338,3.67552,2720.7,2720.1,3.67623]
[1739545636536,4.36762715,2721.0,2719.9,3.6765]
[1739545636537,3.67576,2720.6,2719.9,3.6765]
[1739545636749,5.16252715,2721.0,2720.0,3.67646]
[1739545636750,3.67543,2720.8,2720.0,3.67646]
[1739545637065,0.02749637,2720.4,2719.8,4.47927]
[1739545637222,3.67601,2720.4,2719.8,4.47927]
[1739545637561,3.67543,2720.8,2719.9,0.0075]
[1739545637768,3.67557,2720.7,2720.1,3.67626]
[1739545637946,3.67557,2720.7,2720.0,3.67646]
[1739545637947,9.50785,2720.5,2720.0,3.67646]
[1739545638133,5.832,2720.5,2720.1,3.67632]
[1739545638548,5.832,2720.5,2719.5,3.67708]
[1739545638549,0.7949,2720.3,2719.7,0.8026]
[1739545638763,0.7949,2720.3,2719.7,4.47941]
[1739545639063,9.50788,2720.5,2719.9,3.6765]
[1739545639263,5.832,2720.5,2719.9,3.6765]
[1739545639849,9.50787,2720.5,2719.9,3.6765]
[1739545640057,5.832,2720.5,2719.9,3.6765]
[1739545640441,5.832,2720.5,2720.2,3.67618]
[1739545640637,5.832,2720.5,2720.0,3.71315102]
[1739545640843,5.832,2720.5,2720.0,3.67639]
[1739545641023,5.832,2720.5,2720.0,3.67645]
[1739545641243,5.832,2720.5,2719.9,3.67652]
[1739545641570,5.832,2720.5,2720.0,3.67638]
[1739545641571,9.50783,2720.5,2720.0,3.67638]
[1739545641769,3.67617,2720.3,2719.7,4.47945]
[1739545641939,3.67617,2720.3,2719.7,5.82061951]
[1739545642126,3.67636,2720.1,2719.5,12.42705]
[1739545642535,0.7747,2720.2,2719.6,3.67698]
[1739545642772,3.67634,2720.1,2719.6,3.67698]
[1739545643082,0.7747,2720.2,2719.5,8.75]
[1739545643254,3.67679,2719.8,2719.4,0.8145]
[1739545643453,3.67679,2719.8,2719.3,3.67738]
[1739545644071,3.67679,2719.8,2719.2,3.67746]
[1739545644380,3.67654,2720.0,2719.2,3.67746]
[1739545644566,3.67704,2719.6,2719.1,0.8145]
[1739545644878,3.67755,2719.3,2718.7,0.8145]
[1739545645063,0.02749637,2719.5,2718.3,0.8145]
[1739545645064,3.67809,2718.8,2718.3,0.8145]
[1739545645579,0.7747,2718.9,2718.3,4.49317]
[1739545645738,4.45266,2718.9,2718.4,3.6786]
[1739545645938,4.45266,2718.9,2718.3,0.8145]
[1739545646152,4.45266,2718.9,2718.3,4.49316]
[1739545646347,4.45266,2718.9,2718.0,4.49358]
[1739545646348,0.02749637,2718.8,2718.0,4.49358]
[1739545646543,3.67809,2718.8,2718.1,3.67894]
[1739545647184,3.67809,2718.8,2718.3,3.67873]
[1739545647374,3.67823,2718.7,2718.1,3.67896]
[1739545647571,3.67852,2718.5,2718.0,4.49366]
[1739545647772,0.02749637,2718.4,2717.7,9.5645]
[1739545647950,3.67872,2718.4,2717.7,13.24398]
[1739545648152,3.67871,2718.4,2717.8,3.6794]
[1739545648350,3.67844,2718.6,2718.0,3.67916]
[1739545648592,3.67844,2718.6,2717.8,3.6794]
[1739545648751,3.6787,2718.4,2717.8,3.6794]
[1739545648953,3.6787,2718.4,2717.8,3.67936]
[1739545649193,0.367844,2718.5,2717.9,3.67922]
[1739545649370,4.046414,2718.5,2717.9,3.67922]
[1739545649694,3.67908,2718.1,2717.7,0.8145]
[1739545649879,4.45365,2718.2,2717.6,3.6797]
[1739545650053,4.45365,2718.2,2717.6,3.6796]
[1739545650255,3.67918,2718.0,2717.5,3.6798]
[1739545650455,3.67918,2718.0,2717.1,5.8075]
[1739545650456,3.68003,2717.4,2716.8,3.68069]
[1739545650660,3.70683637,2717.9,2716.8,3.68069]
[1739545650661,3.67972,2717.6,2717.0,3.68052]
[1739545650857,3.67972,2717.6,2717.1,3.6803]
[1739545651062,7.35952,2717.6,2717.0,3.68052]
[1739545651697,3.0,2717.7,2717.0,3.68045]
[1739545652011,7.347641,2717.7,2717.1,3.68027]
[1739545652310,3.667951,2717.7,2717.1,3.68027]
[1739545652454,7.347561,2717.7,2717.1,3.68027]
[1739545652659,0.7747,2718.2,2717.2,0.03680007]
[1739545652854,0.7747,2718.2,2717.6,3.67961]
[1739545653057,3.0,2718.3,2717.8,3.67932]
[1739545653272,4.45341,2718.4,2717.8,3.67932]
[1739545653709,4.45341,2718.4,2717.7,3.67956]
[1739545653906,1.220041,2718.4,2717.9,3.67918]
[1739545654111,8.577521,2718.4,2717.8,3.67941]
[1739545654313,3.67891,2718.2,2717.6,3.67962]
[1739545654704,3.6789,2718.2,2717.6,3.67964]
[1739545655019,3.67933,2717.9,2717.4,3.67993]
[1739545655208,3.67948,2717.8,2717.2,12.43016]
[1739545655406,3.67932,2717.9,2717.4,3.6799]
[1739545655633,3.67902,2718.2,2717.6,3.6797]
[1739545655778,7.35804,2718.2,2717.6,3.6797]
[1739545655981,3.67917,2718.0,2717.4,3.67993]
[1739545656285,3.67952,2717.8,2717.2,3.68015]
[1739545656509,3.67952,2717.8,2717.3,3.68012]
[1739545657008,3.67952,2717.8,2717.1,0.8145]
[1739545657197,3.67978,2717.6,2717.0,3.68043]
[1739545657384,3.67978,2717.6,2717.1,3.68032]
[1739545657586,1.126752,2717.7,2717.2,3.68016]
[1739545657814,0.7588,2717.7,2717.2,3.68018]
[1739545657995,4.43803,2718.0,2717.4,3.67991]
[1739545658208,4.43803,2718.0,2717.5,3.6798]
[1739545658695,0.7588,2718.0,2717.5,3.6798]
[1739545659040,0.7588,2718.0,2717.4,3.67998]
[1739545659041,3.67935,2717.9,2717.4,3.67998]
[1739545659537,3.67954,2717.8,2717.3,3.68008]
[1739545660046,0.02749637,2717.7,2717.0,3.68043]
[1739545660344,3.67958,2717.7,2717.2,3.68021]
[1739545660638,3.67972,2717.6,2717.1,3.6803]
[1739545661344,4.491293,2717.8,2716.9,3.68066]
[1739545661345,0.811753,2717.8,2716.9,3.68066]
[1739545661633,4.43808,2718.0,2717.5,3.67977]
[1739545661939,3.67943,2717.9,2717.4,3.67997]
[1739545662144,3.6794,2717.9,2717.4,3.67997]
[1739545662298,4.43805,2718.0,2717.4,3.67997]
[1739545662482,4.43805,2718.0,2717.5,3.67978]
[1739545663145,4.43805,2718.0,2717.3,3.6801]
[1739545663442,3.67941,2717.9,2717.2,3.68019]
[1739545663643,3.67953,2717.8,2717.2,3.68019]
[1739545663781,0.735894,2717.7,2717.2,3.68019]
[1739545663982,4.415594,2717.7,2717.2,3.68019]
[1739545664242,3.67971,2717.6,2717.2,3.68019]
[1739545664835,0.735894,2717.7,2717.2,7.36033]
[1739545665036,0.7588,2718.0,2717.5,3.67984]
[1739545665198,0.7588,2718.0,2717.6,3.67964]
[1739545665402,0.7588,2718.0,2717.6,3.67961]
[1739545665596,0.7588,2718.0,2717.6,3.67963]
[1739545666943,0.7588,2718.0,2717.6,3.67965]
[1739545667243,3.6787,2718.4,2717.9,3.6793]
[1739545667543,7.3574,2718.4,2717.9,3.6793]
[1739545667744,3.6787,2718.4,2717.9,3.6793]
[1739545667887,7.35741,2718.4,2717.9,3.6793]
[1739545668088,3.6787,2718.4,2717.9,3.67923]
[1739545668391,3.67851,2718.5,2718.0,3.67915]
[1739545668815,1.57115507,2718.7,2717.9,3.67923]
[1739545669108,3.67864,2718.4,2717.9,7.35847]
[1739545669306,3.67864,2718.4,2717.9,3.67923]
[1739545669717,7.35722,2718.5,2718.0,3.67914]
[1739545669914,0.74051551,2718.6,2717.7,3.67956]
[1739545670116,7.49772,2718.7,2718.1,3.67904]
[1739545670317,7.49772,2718.7,2718.2,3.67888]
[1739545670641,5.834,2718.8,2718.5,3.6784]
[1739545671149,5.834,2718.8,2718.6,3.6783]
[1739545671357,5.834,2718.8,2718.7,3.67822]
[1739545671664,5.834,2718.8,2718.7,4.50452]
[1739545672115,0.7628,2719.5,2719.1,3.67756]
[1739545672495,3.67695,2719.7,2719.2,3.67747]
[1739545672822,3.7628,2719.8,2719.3,3.67738]
[1739545673023,4.43954,2719.8,2719.1,3.67756]
[1739545673350,3.67725,2719.5,2718.9,7.35577]
[1739545673550,3.67725,2719.5,2718.9,3.67788]
[1739545673772,3.6771,2719.6,2718.9,3.67788]
[1739545673926,0.443954,2719.7,2719.2,3.67743]
[1739545674126,3.67727,2719.5,2718.8,3.67796]
[1739545674332,4.0893924,2719.5,2718.9,3.67792]
[1739545674556,4.0893924,2719.5,2718.8,3.67796]
[1739545674725,4.0893924,2719.5,2719.0,3.6778]
[1739545675581,3.67708,2719.6,2719.0,7.35553]
[1739545675883,3.67708,2719.6,2719.1,3.67763]
[1739545676083,3.67688,2719.7,2719.0,3.67773]
[1739545676223,3.67701,2719.6,2719.1,3.67768]
[1739545676424,3.67689,2719.7,2719.2,3.67753]
[1739545676867,3.67702,2719.6,2719.0,3.67771]
[1739545677126,5.183538,2719.8,2719.0,3.67771]
[1739545677326,3.67703,2719.6,2719.1,3.67768]
[1739545677972,3.67723,2719.5,2718.8,3.67799]
[1739545678172,3.67703,2719.6,2719.0,3.67774]
[1739545678355,3.67703,2719.6,2719.1,3.67765]
[1739545678533,3.0,2719.7,2718.9,8.75]
[1739545678729,0.7628,2720.3,2719.5,3.67706]
[1739545679041,3.67661,2719.9,2719.5,3.67706]
[1739545679367,3.67661,2719.9,2719.3,4.50363]
[1739545679368,3.6766,2719.9,2719.3,8.18091]
[1739545679572,3.67689,2719.7,2719.3,3.67728]
[1739545679882,0.7628,2719.6,2719.1,3.6776]
[1739545680021,4.43987,2719.6,2719.1,3.6776]
[1739545680229,3.67734,2719.4,2718.7,3.67816]
[1739545680429,3.67734,2719.4,2718.7,8.75]
[1739545680772,3.67734,2719.4,2718.7,12.42817]
[1739545680982,3.67743,2719.3,2718.9,3.67795]
[1739545681295,3.67804,2718.9,2718.4,12.42863]
[1739545681472,3.67832,2718.7,2718.2,3.67889]
[1739545681788,3.67832,2718.7,2718.2,3.67881]
[1739545682070,0.7628,2719.1,2718.2,3.67881]
[1739545682071,6.67787,2719.0,2718.2,1.610789]
[1739545682273,3.0,2719.0,2718.5,3.67843]
[1739545682486,3.67802,2718.9,2718.3,3.67868]
[1739545682831,3.67791,2719.0,2718.2,1.610789]
[1739545683027,3.67748,2719.3,2718.5,0.8263]
[1739545683228,3.67762,2719.2,2718.6,3.67828]
[1739545683458,3.67797,2718.9,2718.5,8.75]
[1739545683802,3.67773,2719.1,2718.5,8.75]
[1739545684273,3.67804,2718.9,2718.5,8.75]
[1739545684488,3.67836,2718.6,2718.5,8.75]
[1739545684695,3.67835,2718.7,2718.2,12.42889]
[1739545684992,3.67824,2718.7,2718.2,14.122317]
[1739545685145,3.67861,2718.5,2718.1,8.75]
[1739545685470,3.67859,2718.5,2718.1,8.75]
[1739545685644,3.67858,2718.5,2718.1,8.75]
[1739545686283,3.67864,2718.4,2718.1,8.75]
[1739545686436,3.67884,2718.3,2718.1,8.75]
[1739545686832,0.7892,2718.2,2717.5,0.7812]
[1739545687037,3.67938,2717.9,2717.3,3.68006]
[1739545687236,3.67938,2717.9,2717.3,3.68003]
[1739545687582,3.67946,2717.8,2717.2,3.68023]
[1739545687734,3.67966,2717.7,2717.1,12.43027]
[1739545687973,3.67942,2717.9,2717.1,12.43027]
[1739545688175,3.67959,2717.7,2717.1,12.43027]
[1739545688475,3.67959,2717.7,2717.2,3.68023]
[1739545688774,0.02749637,2717.8,2717.2,3.68023]
[1739545688775,3.70701637,2717.8,2717.2,3.68018]
[1739545688942,3.67952,2717.8,2717.2,3.68018]
[1739545689147,0.02749637,2717.8,2717.2,3.68018]
[1739545689381,3.67958,2717.7,2717.2,3.68018]
[1739545689676,4.46815,2718.2,2717.2,3.68018]
[1739545689677,0.7892,2718.2,2717.3,0.60179689]
[1739545689826,3.67912,2718.1,2717.6,3.67964]
[1739545690030,3.67938,2717.9,2717.2,5.5014597]
[1739545690395,3.67952,2717.8,2717.3,3.68003]
[1739545690585,4.46817,2718.2,2717.6,3.67959]
[1739545690888,4.46817,2718.2,2717.7,3.67947]
[1739545691401,7.35796,2718.2,2717.7,4.46067]
[1739545691529,3.67877,2718.3,2717.7,1.59525]
[1739545691730,3.67877,2718.3,2717.8,3.67937]
[1739545691931,3.0,2718.4,2717.7,4.46065]
[1739545692175,5.833,2718.9,2718.1,3.67895]
[1739545692372,5.833,2718.9,2717.5,0.565]
[1739545692373,5.833,2718.9,2718.5,3.67849]
[1739545692609,5.833,2718.9,2718.8,3.67809]
[1739545692732,5.833,2718.9,2718.6,8.75]
[1739545692935,5.833,2718.9,2718.6,12.42828]
[1739545693133,5.833,2718.9,2718.8,3.67809]
[1739545693329,0.7659,2719.5,2718.9,3.67786]
[1739545693558,0.7659,2719.5,2719.0,3.67772]
[1739545693780,0.7659,2719.5,2718.9,9.566]
[1739545693931,3.6769,2719.7,2719.2,3.67745]
[1739545694136,3.7659,2719.9,2719.3,0.03677364]
[1739545694382,3.67679,2719.8,2719.2,3.67751]
[1739545694537,0.444262,2719.9,2719.4,3.67714]
[1739545694736,3.67649,2720.0,2719.4,3.67714]
[1739545694974,3.67649,2720.0,2719.4,3.67717]
[1739545695934,3.67649,2720.0,2719.5,3.6771]
[1739545696130,3.7659,2720.2,2719.6,3.67693]
[1739545696380,0.7659,2720.2,2719.5,4.49308]
[1739545696535,9.509,2720.4,2719.5,4.49308]
[1739545696536,13.18502,2720.4,2719.5,13.69605503]
[1739545696739,3.67612,2720.3,2719.7,3.67675]
[1739545696938,13.18505,2720.4,2719.7,3.67675]
[1739545697140,5.833,2720.4,2719.9,3.67654]
[1739545697881,5.833,2720.4,2719.9,4.411875]
[1739545698037,5.833,2720.4,2720.0,3.67645]
[1739545698237,5.833,2720.4,2719.9,4.411875]
[1739545698472,5.833,2720.4,2719.9,8.088395]
[1739545699083,5.833,2720.4,2720.0,3.67643]
[1739545699297,5.833,2720.4,2720.0,4.4852585]
[1739545699810,5.833,2720.4,2720.1,0.816]
[1739545699955,5.833,2720.4,2720.2,3.6762]
[1739545700153,5.833,2720.4,2720.3,3.67606]
[1739545700507,5.833,2720.4,2720.2,12.42611]
[1739545701511,5.833,2720.4,2720.2,12.42619]
[1739545701669,5.833,2720.4,2720.2,8.75]
[1739545701670,9.509,2720.4,2720.2,8.75]
[1739545701853,3.67606,2720.3,2720.2,8.75]
[1739545702207,9.509,2720.4,2720.2,8.75]
[1739545702769,4.46476,2720.3,2720.2,8.75]
[1739545702936,0.7887,2720.3,2720.2,8.75]
[1739545703089,5.833,2720.4,2720.2,8.75]
[1739545703278,5.833,2720.4,2720.3,3.67606]
[1739545703480,5.833,2720.4,2720.2,8.75]
[1739545704507,9.50893,2720.4,2720.2,8.75]
[1739545704705,0.7887,2721.0,2720.3,9.5282]
[1739545704915,0.7887,2721.4,2720.4,8.78675508]
[1739545705233,0.7887,2721.4,2720.8,3.67531]
[1739545705422,7.46329,2721.4,2720.4,8.75]
[1739545705840,0.7887,2721.4,2721.0,3.67503]
[1739545705985,0.7887,2721.4,2721.1,3.6749]
[1739545706542,0.7887,2721.4,2721.0,3.67503]
[1739545707336,0.81619637,2721.4,2721.0,3.67503]
[1739545707658,0.7887,2721.4,2721.0,3.67503]
[1739545708075,0.446315,2721.3,2720.2,4.36762715]
[1739545708273,3.67528,2720.9,2720.4,3.67592]
[1739545708559,0.446315,2721.3,2719.6,12.42698]
[1739545708560,3.0,2720.4,2719.6,12.42698]
[1739545708766,3.67627,2720.2,2719.6,3.67692]
[1739545709066,6.67598,2720.4,2719.8,3.67664]
[1739545709567,3.0,2720.4,2719.8,3.67664]
[1739545709758,6.676,2720.4,2719.8,3.67664]
[1739545709913,7.45881375,2720.4,2719.8,3.67664]
[1739545710104,3.67609,2720.3,2719.8,3.67664]
[1739545710319,3.6764,2720.1,2719.6,3.67694]
[1739545710687,4.46525,2720.0,2719.2,12.42747]
[1739545710866,3.67688,2719.7,2719.2,3.67747]
[1739545711172,0.02749637,2719.6,2719.2,3.67747]
[1739545711371,0.02749637,2719.6,2719.0,3.67775]
[1739545711603,3.6775,2719.3,2718.7,12.42822]
[1739545711775,0.81619637,2719.4,2718.8,3.67801]
[1739545712064,4.466,2719.4,2718.8,3.67801]
[1739545712218,3.67749,2719.3,2718.6,3.67831]
[1739545712418,3.67749,2719.3,2718.6,3.67825]